Cogmind - Beta 11.1 @@@ ROGUE MODE // 2022.06.08 @ 23:43:32 Player: Ruxi Result: Self-destructed Performance ------------- Evolutions (2) 1000 Regions Visited (5) 1000 Robots Destroyed (24) 120 Value Destroyed (437) 437 Prototype IDs (25) 500 Alien Tech Used (0) 0 Bonus (260) 260 TOTAL SCORE: 3317 Bonus ------- Follower Combat Kills 35 Aligned with FarCom 300 Friendly Fire -75 Cogmind --------- Core Integrity 526/550 Matter 260/300 Energy 106/160 System Corruption 0% Temperature Danger (436) Movement Flying (50) Location -8/Materials Parts ------- > --- POWER (1) -------- Light Nuclear Core > --- PROPULSION (4) --- Flying Fortress v7 > --- UTILITY (4) ------ Large Storage Unit Weight Redist. System Hardened Heavy Armor Plating > --- WEAPON (2) ------- Light EM Pulse Cannon Remote Datajack > --- INVENTORY (15) --- Carbon-fiber Leg Improved Carbon-fiber Leg Reaction Control System Core Shielding Supersonic Drone Bay (1/1) Army-in-a-Box (30/30) Beamcaster Gauss Cannon Grenade Launcher Mining Laser Peak State ------------ > --- POWER ------------ Light Nuclear Core > --- PROPULSION ------- Flying Fortress v7 > --- UTILITY ---------- Large Storage Unit Core Shielding Hardened Heavy Armor Plating > --- WEAPON ----------- Beamcaster Gauss Cannon > --- INVENTORY -------- Improved Carbon-fiber Leg Supersonic Drone Bay Army-in-a-Box Grenade Launcher Remote Datajack Mining Laser [Rating: 61] Favorites ----------- Power Light Ion Engine Engine Light Ion Engine Power Core Light Nuclear Core Propulsion Light Treads Treads Light Treads Leg Aluminum Leg Wheel Wheel Flight Unit Flying Fortress v7 Utility Large Storage Unit Device Sensor Array Storage Large Storage Unit Protection Core Shielding Weapon Assault Rifle Energy Gun Beamcaster Energy Cannon Light EM Pulse Cannon Ballistic Gun Assault Rifle Ballistic Cannon Gauss Cannon Launcher Grenade Launcher Special Weapon Mining Laser Build | -11 -10 -10 -10 -9 -8 ------- Run | Scr Mat Min Exi Min Mat Slots Evolved 4 | . . . . . 4 Power . | . . . . . . Propulsion 2 | . . . . . 2 Utility 2 | . . . . . 2 Weapon . | . . . . . . Parts Attached 45 | . 10 13 . 4 18 Power 4 | . 1 2 . 1 . Engine 2 | . 1 1 . . . Core 2 | . . 1 . 1 . Reactor . | . . . . . . Propulsion 13 | . 3 4 . 2 4 Treads 3 | . 2 1 . . . Leg 6 | . . 2 . 2 2 Wheel 2 | . 1 1 . . . Hover . | . . . . . . Flight 2 | . . . . . 2 Utility 7 | . 3 2 . . 2 Device 2 | . 1 . . . 1 Storage 2 | . 2 . . . . Processor . | . . . . . . Hackware . | . . . . . . Protection 3 | . . 2 . . 1 Artifact . | . . . . . . Weapon 21 | . 3 5 . 1 12 Energy Gun 2 | . . . . . 2 Energy Cannon 2 | . . . . . 2 Ballistic Gun 5 | . 2 3 . . . Ballistic Cannon 4 | . . 1 . 1 2 Launcher 1 | . . 1 . . . Special Weapon 7 | . 1 . . . 6 Impact Weapon . | . . . . . . Slashing Weapon . | . . . . . . Piercing Weapon . | . . . . . . Special Melee Weapon . | . . . . . . Unidentified Prototypes . | . . . . . . Parts Lost 8 | . 1 7 . . . Power 1 | . . 1 . . . Propulsion 3 | . 1 2 . . . Utility 1 | . . 1 . . . Weapon 3 | . . 3 . . . Highest Loss Streak 7 | . 1 7 . . . To Critical Strikes . | . . . . . . Average Slot Usage (%) 94 | . 99 98 100 100 60 Engine 10 | . 14 13 14 3 . Core 2 | . . . . 10 9 Treads 9 | . 21 . . . . Leg 10 | . . 14 28 28 2 Wheel 4 | . 4 12 . . . Device 6 | . 13 1 . . 4 Storage 13 | . 14 14 14 14 9 Protection 7 | . . 12 14 14 13 Ballistic Gun 15 | . 26 13 14 3 . Ballistic Cannon 3 | . . 5 . 10 4 Launcher 5 | . . 8 14 14 2 Naked Turns . | . . . . . . Heaviest Build 58 | 12 28 33 29 36 58 Greatest Support 56 | 20 40 26 20 33 56 Greatest Overweight (x) 2 | . 2 2 1 1 1 Average Overweight (x) . | . . 1 1 . . Largest Inventory Capacity 15 | . 15 15 15 15 15 Average Capacity 13 | . 11 15 15 15 15 Most Carried 15 | . 14 15 15 15 15 Average Carried 11 | . 7 13 14 14 13 Final Capacity 15 | 8 15 15 15 15 15 Final Carried 15 | 6 14 15 15 15 15 Class Distribution -------------------- 100% | Mutant Dominant Class ---------------- Mutant | -10/Materials Mutant | -10/Mines Mutant | -10/Exiles Mutant | -9/Mines Mutant | -8/Materials Resources | -11 -10 -10 -10 -9 -8 ----------- Run | Scr Mat Min Exi Min Mat Matter Collected 1270 | 200 271 525 . 100 174 Remotely . | . . . . . . Salvage Created 691 | . 374 108 . 32 177 Parts 39 | . 25 7 . 2 5 Haulers Intercepted 3 | . 2 . . . 1 Recyclers Shooed . | . . . . . . Parts Field Recycled . | . . . . . . Retrieved Matter . | . . . . . . Parts Self-Destructed . | . . . . . . Prevented . | . . . . . . Kills | -11 -10 -10 -10 -9 -8 ------- Run | Scr Mat Min Exi Min Mat Combat Hostiles Destroyed 16 | . 12 2 . 1 1 Guns 15 | . 12 2 . . 1 Cannons 1 | . . . . 1 . Classes Destroyed 8 | . 5 2 . . 1 Builder 1 | . . 1 . . . Hauler 3 | . 2 . . . 1 Recycler 2 | . . 1 . . 1 Operator 1 | . 1 . . . . Watcher 1 | . 1 . . . . Swarmer 9 | . 9 . . . . Grunt 6 | . 3 2 . 1 . Hunter 1 | . . . . . 1 Best Kill Streak 3 | . 3 2 . 1 1 Combat Bots Only 3 | . 3 2 . 1 1 Max Kills in Single Turn 2 | . 2 1 . 1 1 Gunslinging 1 | . 1 . . . . Exploded . | . . . . . . Melee . | . . . . . . Uniques/NPCs Destroyed . | . . . . . . Combat | -11 -10 -10 -10 -9 -8 -------- Run | Scr Mat Min Exi Min Mat Damage Taken 1363 | . 453 722 . 69 119 Core 228 | . 81 96 . 27 24 Absorbed by Shields . | . . . . . . Redirected to Shielding 24 | . . 13 . 6 5 Core Remaining (%) 59 | 100 . . . 18 . Volleys Fired 102 | . 50 22 . 10 20 Largest 2 | . 2 2 . 1 2 Hottest 123 | . 100 55 . 48 123 Shots Fired 164 | . 97 33 . 10 24 Gun 123 | . 94 22 . . 7 Cannon 25 | . . 10 . 10 5 Launcher 1 | . . 1 . . . Special 15 | . 3 . . . 12 Kinetic 140 | . 94 32 . 10 4 Thermal 20 | . 3 . . . 17 Explosive 1 | . . 1 . . . Electromagnetic 1 | . . . . . 1 Robot Hit Streak 6 | . 6 5 . 2 3 Robot Miss Streak 5 | . 5 2 . 3 2 Penetration Max . | . . . . . . Secondary Targets 2 | . 2 . . . . Max Gunslinging Chain 1 | . 1 . . . . Shots Hit Robots 82 | . 49 20 . 5 8 Core Hits 37 | . 23 8 . 2 4 Critical Kills 1 | . . 1 . . . Critical Parts Destroyed 2 | . 2 . . . . Critical Strikes 5 | . 2 1 . 1 1 Burn 1 | . . . . . 1 Destroy 3 | . 2 1 . . . Blast 1 | . . . . 1 . Melee Attacks . | . . . . . . Impact . | . . . . . . Slashing . | . . . . . . Piercing . | . . . . . . Sneak Attacks . | . . . . . . Combat Hostiles . | . . . . . . Follow-up Attacks . | . . . . . . Damage Inflicted 1461 | . 836 351 . 137 137 Guns 886 | . 629 193 . . 64 Cannons 338 | . . 128 . 137 73 Explosions 237 | . 207 30 . . . Melee . | . . . . . . Ramming . | . . . . . . Kinetic 1137 | . 629 321 . 137 50 Thermal 271 | . 207 . . . 64 Explosive 30 | . . 30 . . . Electromagnetic 23 | . . . . . 23 Impact . | . . . . . . Slashing . | . . . . . . Piercing . | . . . . . . Highest Corruption . | . . . . . . Average Corruption . | . . . . . . Corruption Purged . | . . . . . . Corruption Blocked . | . . . . . . Overload Shots . | . . . . . . Overflow Damage 39 | . 35 4 . . . Projectiles . | . . . . . . Explosions 39 | . 35 4 . . . Melee . | . . . . . . Knockbacks 5 | . . 3 . 1 1 Impact . | . . . . . . Kinetic 5 | . . 3 . 1 1 Secondary . | . . . . . . Self-Inflicted Damage 72 | . 72 . . . . Shots 1 | . 1 . . . . Rammed . | . . . . . . Targets Rammed . | . . . . . . Kicked . | . . . . . . Crushed . | . . . . . . Highest Temperature 450 | . 20 54 . 117 450 Average Temperature 93 | . 10 26 . 57 115 Received Heat Transfer 171 | . 42 120 . 9 . Effects 4 | . . . . . 4 Damage (major) 4 | . . . . . 4 Siege Activations . | . . . . . . Robots Corrupted . | . . . . . . Combat Hostiles . | . . . . . . Parts Fried . | . . . . . . Impact Corruptions . | . . . . . . Robots Melted . | . . . . . . Combat Hostiles . | . . . . . . Parts Melted . | . . . . . . Heat Transferred 335 | . 150 . . . 185 Parts Sabotaged . | . . . . . . Parts Stolen . | . . . . . . Parts Stripped . | . . . . . . Power Chain Reactions . | . . . . . . Missiles Intercepted . | . . . . . . Alert | -11 -10 -10 -10 -9 -8 ------- Run | Scr Mat Min Exi Min Mat Peak Influence 181 | . 181 50 . 74 63 Initial . | . . . . . . Average 40 | . 56 20 . 28 31 Maximum Alert Level . | . . . . . . Low Security (%) 100 | . 100 100 . 100 100 Level 1 . | . . . . . . Level 2 . | . . . . . . Level 3 . | . . . . . . Level 4 . | . . . . . . Level 5 . | . . . . . . High Security . | . . . . . . Max Security . | . . . . . . Squads Dispatched 2 | . 2 . . . . Investigation . | . . . . . . Extermination . | . . . . . . Reinforcement 2 | . 2 . . . . Assault . | . . . . . . Garrison . | . . . . . . Intercept . | . . . . . . Searches Triggered . | . . . . . . Construction Impeded . | . . . . . . Haulers Reinforced . | . . . . . . Active Scanning Responses . | . . . . . . Cargo Convoy Interrupts . | . . . . . . Stealth | -11 -10 -10 -10 -9 -8 --------- Run | Scr Mat Min Exi Min Mat Distress Signals 3 | . 2 . . . 1 Communications Jammed . | . . . . . . Distress Signals . | . . . . . . Times Spotted 34 | . 25 5 . 2 2 Peak Tracking Total 4 | . 4 2 . 2 2 Tactical Retreats . | . . . . . . Traps | -11 -10 -10 -10 -9 -8 ------- Run | Scr Mat Min Exi Min Mat Traps Triggered 1 | . 1 . . . . Indirectly . | . . . . . . Trap Hack Attempts . | . . . . . . Triggered . | . . . . . . Disarmed . | . . . . . . Reprogrammed 6 | . 6 . . . . Reused . | . . . . . . Traps Extracted . | . . . . . . Installed . | . . . . . . Triggered . | . . . . . . Machines | -11 -10 -10 -10 -9 -8 ---------- Run | Scr Mat Min Exi Min Mat Machines Disabled 3 | . 3 . . . . Max in Single Turn 2 | . 2 . . . . Machines Sabotaged . | . . . . . . Garrisons Compromised . | . . . . . . Overloaded Fab Kills . | . . . . . . Hacking | -11 -10 -10 -10 -9 -8 --------- Run | Scr Mat Min Exi Min Mat Machines Accessed 11 | . 7 . 1 1 2 Terminals 8 | . 6 . . . 2 Fabricators . | . . . . . . Repair Stations . | . . . . . . Recycling Units 1 | . 1 . . . . Scanalyzers . | . . . . . . Garrison Access . | . . . . . . Total Hacks 25 | . 16 . 1 1 7 Successful 19 | . 11 . 1 1 6 Failed 6 | . 5 . . . 1 Catastrophic . | . . . . . . Database Lockouts . | . . . . . . Manual 21 | . 13 . 1 . 7 Terminals 21 | . 14 . . . 7 Fabricators . | . . . . . . Repair Stations . | . . . . . . Recycling Units 2 | . 2 . . . . Scanalyzers . | . . . . . . Garrison Access . | . . . . . . Terminal Hacks 10 | . 6 . 1 1 2 Prototype ID Bank 1 | . 1 . . . . Open Door 1 | . . . . 1 . Terminal Index 2 | . 1 . . . 1 Unreport Threat 2 | . 2 . . . . Locate Traps 1 | . . . . . 1 Reprogram Traps 1 | . 1 . . . . Hauler Manifests 1 | . 1 . . . . EX-Prototype ID Bank 1 | . . . 1 . . Fabricator Hacks . | . . . . . . Repair Station Hacks . | . . . . . . Recycling Unit Hacks . | . . . . . . Scanalyzer . | . . . . . . Garrison Access Hacks . | . . . . . . Unauthorized Hacks 9 | . 5 . . . 4 Terminals 7 | . 3 . . . 4 Track 1 | . . . . . 1 Assimilate 1 | . 1 . . . . Botnet 3 | . 1 . . . 2 Operators 2 | . 1 . . . 1 Fabricators . | . . . . . . Repair Stations . | . . . . . . Recycling Units 2 | . 2 . . . . Recyclers 1 | . 1 . . . . Mask 1 | . 1 . . . . Scanalyzers . | . . . . . . Garrison Access . | . . . . . . Data Cores Recovered . | . . . . . . Used . | . . . . . . Hacking Detections 6 | . 5 . . . 1 Full Trace Events . | . . . . . . Feedback Events . | . . . . . . Feedback Blocked . | . . . . . . Robot Schematics Acquired . | . . . . . . Robots Built . | . . . . . . Authchips . | . . . . . . Time . | . . . . . . Total Robot Build Rating . | . . . . . . Part Schematics Acquired . | . . . . . . Parts Built . | . . . . . . Authchips . | . . . . . . Time . | . . . . . . Total Part Build Rating . | . . . . . . Parts Repaired . | . . . . . . Time . | . . . . . . Parts Recycled . | . . . . . . Recycled Matter . | . . . . . . Retrieved Matter . | . . . . . . Retrieved Components . | . . . . . . Parts Scanalyzed . | . . . . . . Part Schematics Acquired . | . . . . . . Parts Damaged . | . . . . . . Bothacking | -11 -10 -10 -10 -9 -8 ------------ Run | Scr Mat Min Exi Min Mat Used RIF Installer . | . . . . . . Robots Hacked 1 | . . . . . 1 Non-combat 1 | . . . . . 1 Combat . | . . . . . . Robot Hacks Applied 1 | . . . . . 1 no_distress 1 | . . . . . 1 Relay Couplers Released . | . . . . . . Fabnet Peak Effective % . | . . . . . . Robots Rewired . | . . . . . . Allies Hacked . | . . . . . . Hacks Repelled . | . . . . . . Allies | -11 -10 -10 -10 -9 -8 -------- Run | Scr Mat Min Exi Min Mat Total Allies 4 | . 1 3 . . . Largest Group 3 | . 1 3 3 3 1 Highest-Rated Group 40 | . 10 40 40 40 16 Highest-Rated Ally 16 | . 10 16 16 16 16 Total Orders 9 | . . 2 . . 7 STAY 7 | . . 1 . . 6 FOLLOW 2 | . . 1 . . 1 Ally Attacks 4 | . . . . 4 . Total Damage 47 | . . . . 47 . Kills 1 | . . . . 1 . Allies Corrupted . | . . . . . . Allies Melted . | . . . . . . Intel | -11 -10 -10 -10 -9 -8 ------- Run | Scr Mat Min Exi Min Mat Robot Analysis Total . | . . . . . . Derelict Logs Recovered 3 | . . 1 . 2 . Drone Launches . | . . . . . . Drone Recoveries . | . . . . . . Exploration | -11 -10 -10 -10 -9 -8 ------------- Run | Scr Mat Min Exi Min Mat Turns Passed 3569 | . 1489 649 419 571 441 Spaces Moved 1941 | 1 648 377 217 270 428 Core . | . . . . . . Treads 623 | . 619 4 . . . Legs 693 | 1 28 174 217 270 3 Wheels 200 | . 1 199 . . . Hover . | . . . . . . Flight 425 | . . . . . 425 Fastest Speed 50 | 120 110 105 190 120 50 Average Speed 149 | 120 184 146 190 189 50 Slowest Speed 260 | 120 240 260 190 190 190 Overloaded Moves . | . . . . . . Propulsion Burnouts . | . . . . . . Robots Hopped 3 | . . . . . 3 Cave-ins Triggered . | . . . . . . Exploration Rate (%) 48 | 2 80 84 59 50 17 Regions Visited 5 Branch Regions 3 Pre-discovered Areas . | . . . . . . Known Exits Taken 2 | . . 1 . 1 . Unknown Exits Taken 3 | 1 1 . 1 . . Scrap Searched 4 | . . 2 . 2 . Spaces Dug 12 | . 2 . . . 10 Terrain Destroyed 79 | . 52 6 . 7 14 Melee . | . . . . . . Projectile 23 | . 2 . . 7 14 AOE 56 | . 50 6 . . . Terrain Rammed . | . . . . . . Walls Destroyed . | . . . . . . Machines Disabled . | . . . . . . Actions | -11 -10 -10 -10 -9 -8 --------- Run | Scr Mat Min Exi Min Mat Total 2432 | . 835 440 230 323 604 Wait 277 | . 112 15 . 25 125 Move 1930 | . 647 376 216 269 422 Hop 3 | . . . . . 3 Pick Up 36 | . 11 10 3 6 6 Fast Attach 5 | . 1 2 . . 2 Attach 16 | . 1 7 . . 8 Detach 6 | . . . . . 6 Swap 24 | . 8 4 . 4 8 Drop 33 | . 5 4 11 9 4 Fire 102 | . 50 22 . 10 20 Melee . | . . . . . . Ram . | . . . . . . Kick . | . . . . . . Crush . | . . . . . . Escape Stasis . | . . . . . . Rewire . | . . . . . . Trap . | . . . . . . Miscellaneous . | . . . . . . Route ------- -11/Scrapyard -10/Materials (discovered 3 exits: [*Mat x2] / [*Min]) -10/Mines (discovered 3 exits: [*Mat x2] / *Exi) -10/Exiles -9/Mines (discovered 2 exits: *Mat x2) -8/Materials (discovered 1 exit: Fac) History --------- Turn | Location | Event 1 | -11/Scrapyard | Discovered new exit (range 0) 1 | -11/Scrapyard | Entered Materials 315 | -10/Materials | Build established: Mutant 424 | -10/Materials | Discovered new exit (range 7) 607 | -10/Materials | Discovered new exit (range 13) 1317 | -10/Materials | Discovered new exit (range 15) 1490 | -10/Materials | Entered Mines 1490 | -10/Mines | Accompanied by 1 ally 1510 | -10/Mines | Discovered new exit (range 9) 1618 | -10/Mines | Identified exit to Exiles 1709 | -10/Mines | YI-UF0 nonchalantly dropped a Grenade Launcher on the ground 1741 | -10/Mines | Core integrity fell below 50% 1777 | -10/Mines | Lost 7 parts (1p2n1u3w) 2049 | -10/Mines | Assisted by bots powering up and referring to "LRC-V3" 2063 | -10/Mines | Discovered new exit (range 9) 2131 | -10/Mines | Deemed a non-threat by the Exiles lab entrance 2139 | -10/Mines | Entered Exiles 2139 | -10/Exiles | Accompanied by 3 allies 2185 | -10/Exiles | Met 8R-AWN 2218 | -10/Exiles | Met EX-HEX 2273 | -10/Exiles | Met EX-BIN 2296 | -10/Exiles | Aligned with FarCom system 2298 | -10/Exiles | Given EX-Vault access code 2344 | -10/Exiles | Opened EX-Vault 2363 | -10/Exiles | Found Flying Fortress v7 2373 | -10/Exiles | Found Supersonic Drone Bay 2381 | -10/Exiles | Found Army-in-a-Box 2422 | -10/Exiles | Warned to stay clear of 0b10 Research branches 2477 | -10/Exiles | Met EX-DEC 2543 | -10/Exiles | Discovered new exit (range 10) 2558 | -10/Exiles | Stole three prototypes: Flying Fortress v7, Supersonic Drone Bay, Army-in-a-Box 2558 | -10/Exiles | Entered Mines 2558 | -9/Mines | Accompanied by 3 allies 2598 | -9/Mines | Met a Derelict bent on vengeance 2604 | -9/Mines | Learned 2 Materials zone layouts 2609 | -9/Mines | Met a Derelict who couldn't figure out how to use a Trap Extractor 2745 | -9/Mines | Core integrity fell below 20% 2825 | -9/Mines | Identified exit to Materials 2956 | -9/Mines | Discovered exit to Materials (range 10) 3129 | -9/Mines | Entered Materials 3129 | -8/Materials | Accompanied by 1 ally 3129 | -8/Materials | Evolved 4 slots: Propulsion x2, Utility x2 3130 | -8/Materials | Identified exit to Factory 3570 | -8/Materials | Self-destructed Last Messages --------------- Awaiting botnet instructions. >>Index(Terminals) Found 11 terminals. Downloaded coordinate data. >>Traps(Locate) No traps found in local area. 03347_ R-06 Scavenger collects Lgt. Ion Engine. 03363_ Jacked A-02 Transporter... >>no_distress Distress signal routine blocked. 03370_ A-02 Transporter destroyed. 03374_ Acquired Weight Redist. System. 03377_ Acquired 40 matter. 03378_ Acquired 8 matter. 03381_ Acquired Reaction Control System. 03388_ Acquired 2 matter. 03570_ Overheating: Remote Datajack damaged (-46). 03570_ Overheating: Weight Redist. System damaged (-13). 03570_ Overheating: Lgt. EM Pulse Cannon damaged (-39). 03570_ Overheating: Flying Fortress v7 damaged (-256). Map ----- +----------------------------------------------------+ | ?????????#% #??????##?????????????????????? | | ?????????# ! #???? ?????????????????????? | | ?????????# !! #?? """???????????????????????? | | ?????????# #= """""??????????????????????? | | ?????????# + """"??????????????????????? | | ?????????# """ #! ??????????????????? | | ?????????# """ ############??????????????????? | | ?????????# """ # #????????????????????? | | ?????????# !# """ #????????????????????? | | ?????????#####+#### """ #????????????????????? | | ??????????# # """ #????????????????????? | | ??????????# + = #????????????????????? | | ??????????# # """ #????????????????????? | | ??????????##### # """ #????????????????????? | | ???????????#### # """ #????????????????????? | | ??????????##!! # #????????????????????? | | ??????????#! ##########????????????????????? | | ??????????#! #??????###????????????????????? | | ??????????#! #??????##?????????????????????? | | ??????????#! #########?????????????????????? | | ??????????##!! # #??????????????????????? | | ???????????#### # #??????????????????????? | | ??????????????# # ""#??????????????????????? | | ??????????????# + T"##?????????????????????? | | ??????????????# # ""###????????????????????? | | ?????????????## # @# #????????????????????? | | ?????????????## #######;u#????????????????????? | | ?????????????## #????#####????????????????????? | | ?????????????## #?????????????????????????????? | | ??????????????# #?????????????????????????????? | | ??????????????# #?????????????????????????????? | | ??????????????# #?????????????????????????????? | | ??????????????# #?????????????????????????????? | | ??????????????# #?????????????????????????????? | | ??????????????# ##????????????????????????????? | | ??????????????# "#?????????o??????????????????? | | ?????????????## ##????????????????????????????? | | ?????????????## #?????????????????????????????? | | ?????????????## #?????????????????????????????? | | ??????????????# #?????????????????????????????? | | ??????????????# #?????????????????????????????? | | ??????????????# #?????????????????????????????? | | ??????????????# #?????????????????????????????? | | ??????????????# ?????????????????????????????? | | ??????????????# ????????????????????????????? | | ??????????????+ ###????????????????????????????? | | ??????????????# #??????????????????????????????? | | ??????????????# #??????????????????????????????? | | ??????????????# #??????????????????????????????? | | ??????????????# #??????????????????????????????? | +----------------------------------------------------+ Best States ------------- Heat Dissipation 31 Energy Generation 14 Energy Capacity 160 Matter Stores 300 Matter Capacity 300 Sight Range 16 Robot Scan Range 14 Terrain Scan Density 10 Additional Mass Support 6 Armor Coverage 600 Core Shielding 20 Evasion (%) 60 Recoil Reduction 2 Item Schematics ----------------- None Robot Schematics ------------------ None Fabricated ------------ Nothing Alien Tech Used ----------------- None Achievements -------------- None Challenges ------------ None Game ------ Seed WeightExplosiveWarhead Manual? 0 Play Time 00:46:44 Cumulative 118.8 hours Start 2022.06.08 @ 02:15:59 End 2022.06.08 @ 23:43:32 Sessions 3 Manual Loads 0 Difficulty Rogue Special Mode None Game No. 77 Rogue 75 Adventurer 0 Explorer 2 Win Type - Total 0 Types 0/0/0/0/0/0/0/0/0 Lore% 27 Gallery% 38 Achievement% 32 Wizard Run 0 Options --------- ASCII 0 Keyboard 0 Movement Numpad Keybinds 0 Fullscreen 1 Font 18/SmallcapsGlow Map View 76x50 Tactical HUD 1 Map Filters NONE Filters NONE Steam 1 RUN: 72dfadb3-c564-4886-aad5-405dba1814dd